[Event "98th Caplin Hastings Masters 2024-25"]
[Site "Hastings"]
[Date "2025.01.01"]
[Round "7.34"]
[White "Hu, Junyan"]
[Black "Verbin, Valentina"]
[Result "0-1"]
[ECO "B80"]
[WhiteElo "1933"]
[BlackElo "2093"]
[Annotator "NA RC"]
[PlyCount "120"]
[EventDate "2024.12.23"]
[EventType "swiss"]
[EventCountry "ENG"]
[SourceTitle "playchess.com"]
[Source "ChessBase"]
[SourceQuality "1"]
[TimeControl "5400+30"]

1. e4 {[%emt 0:00:03]} c5 {[%emt 0:00:18]} 2. Nf3 {[%emt 0:00:32]} e6 {[%emt 0:00:37]} 3. g3 {[%emt 0:00:54]} Nc6 {[%emt 0:01:38]} 4. Bg2 {[%emt 0:00:34]} d6 {[%emt 0:01:51]} 5. d4 {[%emt 0:00:30]} cxd4 {[%emt 0:01:27]} 6. Nxd4 {[%emt 0:00:09]} Bd7 {[%emt 0:05:37]} 7. O-O {[%emt 0:02:21]} Nf6 {[%emt 0:00:48]} 8. Nc3 {[%emt 0:03:45]} a6 {[%emt 0:03:44]} 9. Be3 {[%emt 0:03:17]} Be7 {[%emt 0:00:40]} 10. h3 {[%emt 0:00:57]} O-O {[%emt 0:02:15]} 11. g4 {[%emt 0:03:55]} Nxd4 {[%emt 0:08:49]} 12. Bxd4 {[%emt 0:02:50]} Bc6 {[%emt 0:00:03]} 13. e5 {[%emt 0:01:04]} dxe5 {[%emt 0:03:12]} 14. Bxe5 {[%emt 0:00:47]} Bxg2 {[%emt 0:01:58]} 15. Qxd8 {[%emt 0:05:29]} Rfxd8 {[%emt 0:00:14]} 16. Kxg2 {[%emt 0:00:13]} b5 {[%emt 0:05:16]} 17. Rad1 {[%emt 0:03:46]} b4 {[%emt 0:03:17]} 18. Ne2 {[%emt 0:06:12]} Ne4 {[%emt 0:03:02]} 19. f3 {[%emt 0:00:54]} Nd2 {[%emt 0:01:31]} 20. Rfe1 {[%emt 0:04:30]} Nc4 {[%emt 0:00:07]} 21. Bd4 {[%emt 0:14:25]} e5 {[%emt 0:05:00]} 22. b3 {[%emt 0:01:59]} exd4 {[%emt 0:13:25]} 23. bxc4 {[%emt 0:00:21]} Bh4 {[%emt 0:03:04]} 24. Rf1 {[%emt 0:04:34]} Rac8 {[%emt 0:07:42]} 25. Rxd4 {[%emt 0:09:12]} Rxd4 {[%emt 0:00:32]} 26. Nxd4 {[%emt 0:00:08]} Rxc4 {[%emt 0:00:06]} 27. Rd1 {[%emt 0:00:19]} Bf6 {[%emt 0:00:02]} 28. Nb3 {[%emt 0:00:06]} Rxc2+ {[%emt 0:00:06]} 29. Rd2 {[%emt 0:00:02]} Rxd2+ {[%emt 0:02:59]} 30. Nxd2 {[%emt 0:00:47]} a5 {[%emt 0:03:53]} 31. Kf2 {[%emt 0:00:36]} a4 {[%emt 0:00:21]} 32. Ke2 {[%emt 0:00:28]} b3 {[%emt 0:01:43]} 33. axb3 {[%emt 0:00:32]} a3 {[%emt 0:00:02]} 34. b4 {[%emt 0:00:10]} a2 {[%emt 0:00:36]} 35. Nb3 {[%emt 0:00:12]} a1=Q {[%emt 0:00:16]} 36. Nxa1 {[%emt 0:00:06]} Bxa1 {[%emt 0:00:03]} 37. Kd3 {[%emt 0:00:14]} Be5 {[%emt 0:02:20]} 38. Ke4 {[%emt 0:00:11]} Bb8 {[%emt 0:00:07]} 39. Kd5 {[%emt 0:00:04]} Kf8 {[%emt 0:00:05]} 40. Kc6 {[%emt 0:00:06]} Ke7 {[%emt 0:00:05]} 41. b5 {[%emt 0:00:04]} Kf6 {[%emt 0:00:14]} 42. Kb7 {[%emt 0:00:06]} Be5 {[%emt 0:00:14]} 43. Kc8 {[%emt 0:00:08]} Kg5 {[%emt 0:00:16]} 44. b6 {[%emt 0:00:03]} Kf4 {[%emt 0:01:13]} 45. b7 {[%emt 0:00:04]} Kxf3 {[%emt 0:00:09]} 46. b8=Q {[%emt 0:35:51]} Bxb8 {[%emt 0:00:04]} 47. Kxb8 {[%emt 0:00:00]} Kg3 {[%emt 0:00:03]} 48. Kc7 {[%emt 0:00:00]} Kxh3 {[%emt 0:00:06]} 49. Kd7 {[%emt 0:00:00]} Kxg4 {[%emt 0:00:07]} 50. Ke7 {[%emt 0:00:00]} f5 {[%emt 0:00:06]} 51. Kf7 {[%emt 0:00:00]} g5 {[%emt 0:00:09]} 52. Kg7 {[%emt 0:00:00]} f4 {[%emt 0:00:10]} 53. Kxh7 {[%emt 0:00:00]} f3 {[%emt 0:00:04]} 54. Kh6 {[%emt 0:00:00]} f2 {[%emt 0:00:05]} 55. Kg6 {[%emt 0:00:00]} f1=Q {[%emt 0:00:06]} 56. Kh6 {[%emt 0:00:00]} Qf6+ {[%emt 0:00:12]} 57. Kh7 {[%emt 0:00:00]} Kh5 {[%emt 0:00:15]} 58. Kg8 {[%emt 0:00:00]} Qe7 {[%emt 0:00:07]} 59. Kh8 {[%emt 0:00:00]} Kg6 {[%emt 0:00:04]} 60. Kg8 {[%emt 0:00:00]} Qg7# {[%emt 0:00:05]} 0-1

[Event "98th Caplin Hastings Masters 2024-25"]
[Site "Hastings"]
[Date "2025.01.01"]
[Round "7.35"]
[White "Byron, Alan M"]
[Black "Kim, Taewoo A"]
[Result "0-1"]
[ECO "D06"]
[WhiteElo "2069"]
[BlackElo "1863"]
[Annotator "NA RC"]
[PlyCount "60"]
[EventDate "2024.12.23"]
[EventType "swiss"]
[EventCountry "ENG"]
[SourceTitle "playchess.com"]
[Source "ChessBase"]
[SourceQuality "1"]
[TimeControl "5400+30"]

1. d4 {[%emt 0:00:38]} d5 {[%emt 0:00:32]} 2. Nf3 {[%emt 0:01:09]} Bf5 {[%emt 0:00:11]} 3. c4 {[%emt 0:00:27]} e6 {[%emt 0:00:34]} 4. Nc3 {[%emt 0:00:09]} Nf6 {[%emt 0:05:08]} 5. Qb3 {[%emt 0:03:30]} Nc6 {[%emt 0:01:27]} 6. a3 {[%emt 0:13:43]} Na5 {[%emt 0:09:19]} 7. Qa4+ {[%emt 0:01:44]} c6 {[%emt 0:02:35]} 8. c5 {[%emt 0:05:06]} Be7 {[%emt 0:06:42]} 9. Ne5 {[%emt 0:08:48]} b5 {[%emt 0:23:13]} 10. Qd1 {[%emt 0:10:08]} Rc8 {[%emt 0:07:55]} 11. b4 {[%emt 0:04:13]} Nc4 {[%emt 0:01:49]} 12. Nxc4 {[%emt 0:00:57]} bxc4 {[%emt 0:00:43]} 13. f3 {[%emt 0:04:22]} O-O {[%emt 0:02:25]} 14. Bf4 {[%emt 0:05:36]} Nh5 {[%emt 0:03:36]} 15. Be3 {[%emt 0:04:11]} Bg6 {[%emt 0:08:44]} 16. Bf2 {[%emt 0:10:47]} e5 {[%emt 0:06:15]} 17. dxe5 {[%emt 0:02:51]} f6 {[%emt 0:04:33]} 18. e4 {[%emt 0:06:05]} Bf7 {[%emt 0:01:24]} 19. exf6 {[%emt 0:06:47]} Bxf6 {[%emt 0:00:14]} 20. Rc1 {[%emt 0:00:12]} a5 {[%emt 0:03:37]} 21. Be2 {[%emt 0:00:44]} axb4 {[%emt 0:01:32]} 22. axb4 {[%emt 0:00:02]} d4 {[%emt 0:00:52]} 23. Na4 {[%emt 0:00:45]} d3 {[%emt 0:00:59]} 24. Bf1 {[%emt 0:00:02]} Bg5 {[%emt 0:03:28]} 25. Rc3 {[%emt 0:02:04]} d2+ {[%emt 0:00:39]} 26. Ke2 {[%emt 0:00:01]} Nf4+ {[%emt 0:00:54]} 27. Ke3 {[%emt 0:00:01]} Nxg2+ {[%emt 0:00:41]} 28. Ke2 {[%emt 0:00:01]} Nf4+ {[%emt 0:00:22]} 29. Ke3 {[%emt 0:00:01]} Nd3+ {[%emt 0:00:46]} 30. Ke2 {[%emt 0:00:09]} Nc1+ {[%emt 0:00:31]} 0-1

[Event "98th Caplin Hastings Masters 2024-25"]
[Site "Hastings"]
[Date "2025.01.01"]
[Round "7.36"]
[White "Verbytski, Oleg"]
[Black "Jacobs, Simon"]
[Result "1-0"]
[ECO "B13"]
[WhiteElo "2033"]
[BlackElo "1873"]
[Annotator "NA RC"]
[PlyCount "63"]
[EventDate "2024.12.23"]
[EventType "swiss"]
[EventCountry "ENG"]
[SourceTitle "playchess.com"]
[Source "ChessBase"]
[SourceQuality "1"]
[TimeControl "5400+30"]

1. e4 {[%emt 0:00:02]} c6 {[%emt 0:00:07]} 2. d4 {[%emt 0:00:03]} d5 {[%emt 0:00:07]} 3. exd5 {[%emt 0:00:09]} cxd5 {[%emt 0:00:09]} 4. c4 {[%emt 0:00:01]} Nf6 {[%emt 0:00:16]} 5. Nc3 {[%emt 0:00:02]} Nc6 {[%emt 0:00:08]} 6. Nf3 {[%emt 0:00:03]} a6 {[%emt 0:00:08]} 7. c5 {[%emt 0:00:33]} Bg4 {[%emt 0:01:21]} 8. Be2 {[%emt 0:00:35]} g6 {[%emt 0:00:54]} 9. h3 {[%emt 0:00:27]} Bxf3 {[%emt 0:01:06]} 10. Bxf3 {[%emt 0:00:04]} Bg7 {[%emt 0:01:02]} 11. Be3 {[%emt 0:01:19]} e6 {[%emt 0:01:02]} 12. Rb1 {[%emt 0:06:44]} O-O {[%emt 0:06:31]} 13. O-O {[%emt 0:00:55]} h6 {[%emt 0:01:04]} 14. b4 {[%emt 0:02:11]} Nh7 {[%emt 0:00:52]} 15. a4 {[%emt 0:01:36]} a5 {[%emt 0:06:38]} 16. b5 {[%emt 0:04:07]} Nb4 {[%emt 0:00:14]} 17. g3 {[%emt 0:04:10]} Ng5 {[%emt 0:00:43]} 18. Bg2 {[%emt 0:00:25]} f5 {[%emt 0:09:39]} 19. Qd2 {[%emt 0:08:23]} Kh7 {[%emt 0:02:39]} 20. Na2 {[%emt 0:01:37]} Nxa2 {[%emt 0:01:24]} 21. Qxa2 {[%emt 0:00:34]} Ne4 {[%emt 0:00:32]} 22. Bxe4 {[%emt 0:05:17]} fxe4 {[%emt 0:00:11]} 23. Rfd1 {[%emt 0:00:38]} g5 {[%emt 0:08:41]} 24. b6 {[%emt 0:06:57]} Qd7 {[%emt 0:57:02]} 25. Rb5 {[%emt 0:03:25]} Rf3 {[%emt 0:00:00]} 26. Kg2 {[%emt 0:02:54]} Qf7 {[%emt 0:00:00]} 27. Qd2 {[%emt 0:02:32]} Kg6 {[%emt 0:00:00]} 28. Rc1 {[%emt 0:07:03]} e5 {[%emt 0:00:00]} 29. dxe5 {[%emt 0:02:17]} Bxe5 {[%emt 0:00:00]} 30. c6 {[%emt 0:01:06]} Rxe3 {[%emt 0:00:00]} 31. Qxe3 {[%emt 0:01:24]} Kh5 {[%emt 0:00:00]} 32. c7 {[%emt 0:04:38]} 1-0

[Event "98th Caplin Hastings Masters 2024-25"]
[Site "Hastings"]
[Date "2025.01.01"]
[Round "7.37"]
[White "Fryer, David W"]
[Black "Bhatia, Kanishka"]
[Result "0-1"]
[ECO "C41"]
[WhiteElo "1928"]
[BlackElo "2018"]
[Annotator "NA RC"]
[PlyCount "86"]
[EventDate "2024.12.23"]
[EventType "swiss"]
[EventCountry "ENG"]
[SourceTitle "playchess.com"]
[Source "ChessBase"]
[SourceQuality "1"]
[TimeControl "5400+30"]

1. e4 {[%emt 0:00:03]} d6 {[%emt 0:00:15]} 2. d4 {[%emt 0:00:28]} Nf6 {[%emt 0:00:37]} 3. Nc3 {[%emt 0:00:12]} Nbd7 {[%emt 0:00:05]} 4. Nf3 {[%emt 0:02:05]} e5 {[%emt 0:00:06]} 5. Bc4 {[%emt 0:01:14]} h6 {[%emt 0:04:56]} 6. h3 {[%emt 0:07:06]} Be7 {[%emt 0:00:08]} 7. a4 {[%emt 0:00:56]} c6 {[%emt 0:00:13]} 8. Ba2 {[%emt 0:06:03]} Qc7 {[%emt 0:00:40]} 9. Be3 {[%emt 0:01:28]} Nf8 {[%emt 0:01:24]} 10. Qd2 {[%emt 0:05:06]} Bd7 {[%emt 0:02:53]} 11. a5 {[%emt 0:07:21]} Ng6 {[%emt 0:04:36]} 12. O-O {[%emt 0:03:34]} Nh5 {[%emt 0:01:24]} 13. Rfe1 {[%emt 0:02:10]} Ngf4 {[%emt 0:00:35]} 14. Kh2 {[%emt 0:05:53]} Qc8 {[%emt 0:05:11]} 15. dxe5 {[%emt 0:10:42]} Nxg2 {[%emt 0:08:01]} 16. e6 {[%emt 0:00:49]} Bxe6 {[%emt 0:03:40]} 17. Bxe6 {[%emt 0:08:21]} Nxe1 {[%emt 1:04:16]} 18. Bxf7+ {[%emt 0:06:44]} Kxf7 {[%emt 0:00:00]} 19. Rxe1 {[%emt 0:00:12]} Rf8 {[%emt 0:00:00]} 20. Rg1 {[%emt 0:00:49]} Kg8 {[%emt 0:00:00]} 21. Nd4 {[%emt 0:01:09]} d5 {[%emt 0:00:00]} 22. exd5 {[%emt 0:03:33]} Bd6+ {[%emt 0:00:00]} 23. Kg2 {[%emt 0:02:41]} Nf4+ {[%emt 0:00:00]} 24. Bxf4 {[%emt 0:02:01]} Bxf4 {[%emt 0:00:00]} 25. Qd3 {[%emt 0:00:37]} cxd5 {[%emt 0:00:00]} 26. Nxd5 {[%emt 0:01:46]} Qd7 {[%emt 0:00:00]} 27. Ne2 {[%emt 0:04:13]} Bd6 {[%emt 0:00:00]} 28. f4 {[%emt 0:05:46]} Rad8 {[%emt 0:00:00]} 29. c4 {[%emt 0:00:20]} Qe8 {[%emt 0:00:00]} 30. Rf1 {[%emt 0:03:21]} Qh5 {[%emt 0:00:00]} 31. Qf3 {[%emt 0:02:15]} Qg6+ {[%emt 0:00:00]} 32. Kh1 {[%emt 0:00:24]} Rf7 {[%emt 0:00:00]} 33. f5 {[%emt 0:01:30]} Rdf8 {[%emt 0:00:00]} 34. f6 {[%emt 0:01:09]} Qc2 {[%emt 0:00:00]} 35. b3 {[%emt 0:00:12]} Re8 {[%emt 0:00:00]} 36. Rf2 {[%emt 0:02:45]} Qd1+ {[%emt 0:00:00]} 37. Kg2 {[%emt 0:00:55]} Bc5 {[%emt 0:00:00]} 38. Nef4 {[%emt 0:01:29]} Qa1 {[%emt 0:00:00]} 39. Ng6 {[%emt 0:01:16]} Bxf2 {[%emt 0:00:28]} 40. Nde7+ {[%emt 0:00:29]} Rexe7 {[%emt 0:03:23]} 41. Nxe7+ {[%emt 0:00:32]} Rxe7 {[%emt 0:00:19]} 42. Qd5+ {[%emt 0:00:54]} Rf7 {[%emt 0:00:14]} 43. Qd8+ {[%emt 0:00:14]} Kh7 {[%emt 0:00:10]} 0-1

[Event "98th Caplin Hastings Masters 2024-25"]
[Site "Hastings"]
[Date "2025.01.01"]
[Round "7.38"]
[White "Rayner, Francis"]
[Black "Raffin-Sumyk, Piermael"]
[Result "0-1"]
[ECO "A27"]
[WhiteElo "2013"]
[BlackElo "1512"]
[Annotator "NA RC"]
[PlyCount "85"]
[EventDate "2024.12.23"]
[EventType "swiss"]
[EventCountry "ENG"]
[SourceTitle "playchess.com"]
[Source "ChessBase"]
[SourceQuality "1"]
[TimeControl "5400+30"]

1. c4 {[%emt 0:03:52]} e5 {[%emt 0:00:10]} 2. Nc3 {[%emt 0:01:13]} Nc6 {[%emt 0:00:19]} 3. Nf3 {[%emt 0:00:18]} Bc5 {[%emt 0:00:21]} 4. e3 {[%emt 0:01:43]} d6 {[%emt 0:01:26]} 5. a3 {[%emt 0:03:10]} a6 {[%emt 0:01:57]} 6. d4 {[%emt 0:01:12]} exd4 {[%emt 0:02:11]} 7. exd4 {[%emt 0:00:21]} Ba7 {[%emt 0:00:49]} 8. h3 {[%emt 0:07:25]} h6 {[%emt 0:00:29]} 9. Be2 {[%emt 0:00:23]} Nf6 {[%emt 0:00:11]} 10. O-O {[%emt 0:00:59]} O-O {[%emt 0:01:48]} 11. Be3 {[%emt 0:05:03]} Re8 {[%emt 0:05:53]} 12. Qc2 {[%emt 0:04:36]} Ne7 {[%emt 0:05:21]} 13. Bd3 {[%emt 0:01:14]} d5 {[%emt 0:07:16]} 14. c5 {[%emt 0:02:34]} c6 {[%emt 0:00:44]} 15. b4 {[%emt 0:01:53]} Be6 {[%emt 0:02:28]} 16. Ne5 {[%emt 0:01:10]} Qc8 {[%emt 0:03:51]} 17. g4 {[%emt 0:03:21]} Bb8 {[%emt 0:04:59]} 18. f4 {[%emt 0:01:54]} Bc7 {[%emt 0:17:27]} 19. Rae1 {[%emt 0:03:09]} Ne4 {[%emt 0:12:23]} 20. f5 {[%emt 0:08:12]} Bd7 {[%emt 0:04:32]} 21. Nxe4 {[%emt 0:00:54]} dxe4 {[%emt 0:00:14]} 22. Bxe4 {[%emt 0:00:44]} f6 {[%emt 0:00:57]} 23. Qc4+ {[%emt 0:07:19]} Kh7 {[%emt 0:01:18]} 24. Nd3 {[%emt 0:00:43]} Bg3 {[%emt 0:03:30]} 25. Re2 {[%emt 0:00:46]} Qc7 {[%emt 0:00:17]} 26. Bf4 {[%emt 0:02:07]} Bxf4 {[%emt 0:00:43]} 27. Nxf4 {[%emt 0:00:09]} Rad8 {[%emt 0:00:14]} 28. Kg2 {[%emt 0:01:29]} Bc8 {[%emt 0:00:27]} 29. Kf3 {[%emt 0:03:13]} Qb8 {[%emt 0:05:07]} 30. Rfe1 {[%emt 0:01:09]} Nd5 {[%emt 0:08:22]} 31. Bxd5 {[%emt 0:02:11]} cxd5 {[%emt 0:00:25]} 32. Qd3 {[%emt 0:01:00]} Bd7 {[%emt 0:01:07]} 33. Re7 {[%emt 0:03:32]} Bc6 {[%emt 0:00:53]} 34. R1e3 {[%emt 0:01:56]} Bb5 {[%emt 0:01:33]} 35. Qd2 {[%emt 0:00:47]} Rxe7 {[%emt 0:02:06]} 36. Rxe7 {[%emt 0:00:02]} Re8 {[%emt 0:00:08]} 37. Qe3 {[%emt 0:00:47]} Qd8 {[%emt 0:07:04]} 38. Rxe8 {[%emt 0:01:03]} Bxe8 {[%emt 0:00:00]} 39. Qe6 {[%emt 0:02:07]} Bd7 {[%emt 0:00:00]} 40. Qf7 {[%emt 0:01:02]} Bc6 {[%emt 0:00:00]} 41. Nh5 {[%emt 0:01:46]} Qg8 {[%emt 0:00:00]} 42. Nxf6+ {[%emt 0:00:11]} Kh8 {[%emt 0:00:00]} 43. Qxg8# {[%emt 0:23:21]} 0-1

[Event "98th Caplin Hastings Masters 2024-25"]
[Site "Hastings"]
[Date "2025.01.01"]
[Round "7.39"]
[White "Dewangan, Aayush"]
[Black "Zhu, Yaoyao"]
[Result "1-0"]
[ECO "C56"]
[WhiteElo "1878"]
[BlackElo "1990"]
[Annotator "TA"]
[PlyCount "113"]
[EventDate "2024.12.23"]
[EventType "swiss"]
[EventCountry "ENG"]
[SourceTitle "playchess.com"]
[Source "ChessBase"]
[SourceQuality "1"]
[TimeControl "5400+30"]

{[%evp 20,113,0,-19,-20,-71,-22,-76,-41,-113,-15,-41,-7,-52,-43,-43,-43,-44,-44,-55,-52,-70,-42,-37,-25,-63,-27,-81,-73,-255,-245,-253,-290,-270,-227,-312,-274,-314,-150,-142,-145,-152,-154,-177,-144,-266,-283,-239,-56,-139,-132,-452,-435,-433,-428,-450,-432,-699,-696,-743,-739,-657,-504,-773,-767,-838,-518,-1069,-976,-1095,-1038,-917,311,320,319,302,29974,29967,29975,29976,29976,29977,29977,29978,29985,29979,29979,29980,29981,29982,29982,29983,29983,29984,29983,29982]} 1. e4 {[%emt 0:00:03]} e5 {[%emt 0:00:03]} 2. Nf3 {[%emt 0:00:06]} Nc6 {[%emt 0:00:05]} 3. d4 {[%emt 0:00:05]} exd4 {[%emt 0:00:04]} 4. Bc4 {[%emt 0:00:10]} Nf6 {[%emt 0:00:16]} 5. e5 {[%emt 0:00:04]} d5 {[%emt 0:00:07]} 6. Bb5 {[%emt 0:00:04]} Nd7 {[%emt 0:02:00]} 7. O-O {[%emt 0:03:19]} Be7 {[%emt 0:02:13]} 8. Re1 {[%emt 0:05:14]} O-O {[%emt 0:02:28]} 9. Bxc6 {[%emt 0:01:29]} bxc6 {[%emt 0:00:08]} 10. Nxd4 {[%emt 0:01:25]} Nb8 {[%emt 0:00:15]} 11. c3 {[%emt 0:10:05]} c5 {[%emt 0:01:37]} 12. Nb3 {[%emt 0:03:06]} (12. Ne2 $11) 12... c4 {[%emt 0:10:05]} (12... Qd7 $17) 13. N3d2 {[%emt 0:02:40]} (13. Nd4 $11) 13... a5 {[%emt 0:08:41]} 14. f4 {[%emt 0:03:10]} (14. b3 $15) 14... f5 {[%emt 0:04:38]} ({Black should try} 14... Na6 $17 15. Qf3 Bf5) 15. Nf3 {[%emt 0:01:53]} c5 {[%emt 0:04:33]} 16. a4 {[%emt 0:04:41]} Na6 {[%emt 0:05:00]} 17. Na3 {[%emt 0:02:17]} Nc7 {[%emt 0:02:26]} 18. b3 {[%emt 0:02:09]} cxb3 {[%emt 0:01:21]} 19. Qxb3 {[%emt 0:00:11]} Be6 {[%emt 0:02:00]} 20. Bd2 {[%emt 0:05:55]} Rb8 {[%emt 0:08:28]} 21. Qc2 {[%emt 0:00:33]} Qd7 {[%emt 0:07:43]} 22. c4 {[%emt 0:06:36]} dxc4 {[%emt 0:01:51]} (22... Rb4 $5 23. cxd5 (23. Bxb4 axb4 24. cxd5 Qxd5 $15) 23... Nxd5 24. Bxb4 axb4 $15 (24... cxb4 25. Nb5 $11)) 23. Bxa5 {[%emt 0:04:24]} (23. Nxc4 $11 {keeps the balance.} Nd5 24. Red1) 23... Nd5 $17 {[%emt 0:01:07]} 24. Qd2 $2 {[%emt 0:02:55]} (24. Nxc4 $17 Nxf4 25. Reb1) 24... Qxa4 $19 {[%emt 0:01:49]} 25. Rec1 {[%emt 0:01:57]} c3 $1 {[%emt 0:01:52]} 26. Bxc3 {[%emt 0:00:50]} Qxf4 {[%emt 0:00:18]} 27. Rab1 {[%emt 0:14:00]} Qa4 {[%emt 0:05:39]} 28. Ra1 {[%emt 0:05:55]} Rfd8 {[%emt 0:04:54]} (28... Rb3 $19 {is more deadly.} 29. Nb1 Qe4) 29. Ba5 $17 {[%emt 0:01:20]} Nb6 {[%emt 0:04:52]} 30. Qe1 {[%emt 0:01:21]} Qc6 {[%emt 0:04:03]} 31. Rab1 {[%emt 0:03:03]} c4 {[%emt 0:05:26]} 32. Nb5 {[%emt 0:00:49]} (32. Nc2 $17 {might work better.}) 32... Bc5+ $19 {[%emt 0:00:18]} 33. Kh1 {[%emt 0:00:01]} Rd7 $2 {[%emt 0:02:40]} (33... Rd3 $19 {...Rxf3 is the strong threat.} 34. Qf1 Bd5) 34. Bc3 {[%emt 0:02:14]} (34. Nd6 $15 Bd5 35. Qe2) 34... Rbd8 $17 {[%emt 0:01:30]} 35. Nbd4 $2 {[%emt 0:02:52][%mdl 8192]} (35. Nd6 $17) 35... Bxd4 $19 {[%emt 0:00:29]} (35... Rxd4 36. Nxd4 Rxd4 (36... Bxd4 37. Qh4 $14) 37. Bxd4 Bxd4 38. Rd1 $11) 36. Nxd4 {[%emt 0:00:02]} Rxd4 {[%emt 0:00:41]} 37. Bxd4 {[%emt 0:00:01]} Rxd4 {[%emt 0:00:12]} 38. Qb4 {[%emt 0:00:49]} (38. Qg1 $142 Qc5 39. Rb5 Qxb5 40. Qxd4) 38... Rg4 $19 {[%emt 0:02:56]} 39. Rb2 {[%emt 0:01:51]} Bd5 {[%emt 0:01:03]} 40. Rcc2 {[%emt 0:02:22]} Nd7 {[%emt 0:01:19]} 41. Qe7 {[%emt 0:01:29]} (41. Qd6 $142 Qxd6 42. exd6) 41... h6 $19 {[%emt 0:00:20]} 42. h3 {[%emt 0:00:14]} Rg5 {[%emt 0:00:27]} 43. Re2 {[%emt 0:01:19]} (43. Qd6 $142 Rg6 44. Qxc6 Rxc6 45. Rb5) 43... c3 $19 {[%emt 0:00:22]} 44. Rbc2 {[%emt 0:00:36]} Be4 {[%emt 0:00:28]} 45. e6 {[%emt 0:00:18]} Nf8 $4 {[%emt 0:00:31][%mdl 8192]} (45... Nf6 $19 {and life is good for Black.} 46. Qb4 Bxg2+ 47. Rxg2 Rxg2 (47... Qxe6 48. Qxc3 Kh7 49. Qf3 $15) 48. Rxc3 Qd5 (48... Qxe6 49. Kxg2 Qe2+ 50. Kg1 $15)) 46. Qf7+ $18 {[%emt 0:00:32]} Kh7 {[%emt 0:00:02]} 47. e7 {[%emt 0:01:52]} (47. Qxf8 $2 Rg3 (47... Qxe6 48. Qa3 $11) (47... Bxc2 48. e7 $11) 48. Kh2 Rd3 $19 (48... Qc7 49. Rxe4 Rd3+ 50. Kg1 $17)) 47... Bxg2+ $2 {[%emt 0:03:09]} (47... Rg3 $18 48. exf8=Q (48. exf8=R Rxh3+ 49. Kg1 Qb6+ 50. Rf2 Qb1+ 51. Rf1 Rh1+ 52. Kxh1 Qxf1+ 53. Kh2 Bxc2 $11) 48... Bxg2+ 49. Kg1 (49. Rxg2 Rxh3+ 50. Kg1 Qb6+ 51. Rcf2 Qb1+ 52. Rf1 Rh1+ 53. Kxh1 Qxf1+ 54. Kh2 Qf4+ 55. Kh1 Qh4+ 56. Rh2 Qe4+ 57. Rg2 Qe1+ 58. Rg1 Qh4+ 59. Kg2 Qg4+ 60. Kf2 Qf4+ 61. Kg2 Qg4+ 62. Kf2 Qf4+ 63. Ke2 Qe4+ 64. Kf2 Qf4+ $11) 49... Bd5+ 50. Rg2 Bxf7 51. Rxg3 Qf6) 48. Rxg2 {[%emt 0:00:05]} Qf3 {[%emt 0:00:15]} 49. exf8=N+ {[%emt 0:03:35]} (49. exf8=R Qd1+ 50. Kh2 Qd6+ 51. Kh1 Qd1+ 52. Kh2 Qd6+ 53. Kh1 Qd1+ $11) (49. exf8=Q Qxh3+ 50. Kg1 Rxg2+ 51. Rxg2 Qe3+ 52. Rf2 Qe1+ 53. Kg2 Qe4+ 54. Rf3 Qe2+ 55. Kg3 Qe1+ 56. Kh3 Qh1+ 57. Kg3 Qe1+ 58. Kg2 Qe2+ 59. Rf2 Qg4+ 60. Kh2 Qh4+ 61. Kg1 Qg4+ 62. Rg2 Qd4+ 63. Kf1 Qd1+ 64. Kf2 Qd2+ 65. Kf3 Qd3+ 66. Kf4 Qe4+ 67. Kg3 Qg4+ 68. Kf2 Qf4+ 69. Kg1 Qd4+ 70. Kf1 Qd1+ 71. Kf2 Qd2+ 72. Kf3 Qd3+ 73. Kf2 Qd2+ $11) 49... Kh8 {[%emt 0:00:13]} 50. Ng6+ {[%emt 0:00:10]} Kh7 {[%emt 0:00:02]} 51. Kh2 {[%emt 0:00:31]} Qe4 {[%emt 0:02:21]} 52. Rxg5 {[%emt 0:01:36]} hxg5 {[%emt 0:00:18]} 53. Rf2 {[%emt 0:01:14]} (53. Rxc3 Qe2+ 54. Kg1 Qe1+ 55. Kg2 Qe2+ 56. Kg1 Qe1+ 57. Kg2 Qe2+ 58. Kg3 Qe1+ 59. Kh2 Qf2+ 60. Kh1 Qf1+ 61. Kh2 Qf2+ 62. Kh1 Qe1+ 63. Kg2 $11) 53... c2 {[%emt 0:00:18]} 54. Nf8+ {[%emt 0:00:12]} Kh8 {[%emt 0:00:06]} 55. Qh5+ {[%emt 0:00:09]} ({Inferior is} 55. Rxf5 Qe2+ (55... c1=B 56. Qh5+ Kg8 57. Qh7#) 56. Kg3 Qe1+ (56... c1=B $2 {is the wrong capture.} 57. Ne6 $18) (56... c1=Q 57. Ng6+ Kh7 58. Nf8+ Kh8 59. Ng6+ Kh7 60. Nf8+ Kh8 $11) 57. Kh2 Qd2+ (57... c1=B 58. Qh5+ Kg8 59. Qh7#) 58. Kg3 Qd6+ (58... c1=B 59. Qh5+ Kg8 60. Qh7#) 59. Kg4 Qd4+ (59... c1=B 60. Qh5+ Qh6 61. Ng6+ Kh7 62. Rf8 Qxh5+ 63. Kxh5 Be3 64. Rh8#) (59... c1=Q 60. Ng6+ Kh7 61. Nf8+ Kh8 62. Qh5+ Qh6 63. Ng6+ Kh7 64. Nf8+ Kg8 65. Qf7+ Kh8 66. Ng6+ Kh7 67. Nf8+ Kh8 68. Ng6+ Kh7 69. Nf8+ Kh8 $11) 60. Kf3 (60. Kh5 $2 {leads to mate.} Qh4+ 61. Kg6 Qh6#) 60... Qd1+ (60... c1=B 61. Qh5+ Kg8 62. Qh7#) 61. Kf2 c1=Q (61... c1=B $2 62. Qg6 $18) 62. Ng6+ Kh7 63. Nf8+ Kh8 64. Ng6+ Kh7 65. Nf8+ Kh8 $11) 55... Kg8 {[%emt 0:00:07]} 56. Qh7+ {[%emt 0:00:05]} Kxf8 {[%emt 0:00:09]} 57. Qxf5+ {[%emt 0:00:06]} 1-0